fUST/lending_fUST_20250720
["ID","MTS","AMOUNT","RATE_DAILY","PERIOD"]
[373342092,1752955839239,-652.46,0.00019163,3]
[373342094,1752955839249,-326.23,0.00019163,3]
[373342096,1752955839258,-163.12,0.00019163,3]
[373342098,1752955839268,-174.06416626,0.0001917,2]
[373342100,1752955839277,-500.0,0.0001917,2]
[373342102,1752955839287,-500.0,0.0001917,2]
[373342105,1752955839297,-500.0,0.0001917,2]
[373342107,1752955839307,-318.88036669,0.0001917,2]
[373342109,1752955839317,-535.76931598,0.0001917,2]
[373342111,1752955839327,-500.0,0.0001917,2]
[373342112,1752955839336,-500.0,0.0001917,2]
[373342115,1752955839346,-500.0,0.0001917,2]
[373342117,1752955839355,-500.0,0.0001917,2]
[373342118,1752955839364,-500.0,0.0001917,2]
[373342121,1752955839374,-500.0,0.0001917,2]
[373342123,1752955839384,-500.0,0.0001917,2]
[373342125,1752955839394,-500.0,0.0001917,2]
[373342127,1752955839403,-500.0,0.0001917,2]
[373342129,1752955839413,-500.0,0.0001917,2]
[373342131,1752955839422,-500.0,0.0001917,2]
[373342133,1752955839432,-500.0,0.0001917,2]
[373342135,1752955839441,-500.0,0.0001917,2]
[373342137,1752955839451,-510.03146813,0.0001917,2]
[373342139,1752955839460,-500.0,0.0001917,2]
[373342141,1752955839469,-500.0,0.0001917,2]
[373342143,1752955839479,-500.0,0.0001917,2]
[373342145,1752955839488,-500.0,0.0001917,2]
[373342147,1752955839498,-500.0,0.0001917,2]
[373342149,1752955839507,-500.0,0.0001917,2]
[373342151,1752955839516,-500.0,0.0001917,2]
[373342153,1752955839525,-500.0,0.0001917,2]
[373342155,1752955839535,-500.0,0.0001917,2]
[373342157,1752955839544,-500.0,0.0001917,2]
[373342159,1752955839554,-500.0,0.0001917,2]
[373342160,1752955839563,-500.0,0.0001917,2]
[373342161,1752955839572,-500.0,0.0001917,2]
[373342162,1752955839581,-500.0,0.0001917,2]
[373342163,1752955839593,-500.0,0.0001917,2]
[373342164,1752955839602,-500.0,0.0001917,2]
[373342165,1752955839614,-500.0,0.0001917,2]
[373342166,1752955839623,-500.0,0.0001917,2]
[373342167,1752955839633,-500.0,0.0001917,2]
[373342168,1752955839642,-500.0,0.0001917,2]
[373342169,1752955839652,-500.0,0.0001917,2]
[373342170,1752955839661,-500.0,0.0001917,2]
[373342171,1752955839671,-500.0,0.0001917,2]
[373342172,1752955839680,-500.0,0.0001917,2]
[373342173,1752955839690,-500.0,0.0001917,2]
[373342174,1752955839699,-500.0,0.0001917,2]
[373342175,1752955839709,-500.0,0.0001917,2]
[373342176,1752955839719,-500.0,0.0001917,2]
[373342177,1752955839729,-500.0,0.0001917,2]
[373342178,1752955839738,-500.0,0.0001917,2]
[373342179,1752955839748,-500.0,0.0001917,2]
[373342180,1752955839759,-500.0,0.0001917,2]
[373342181,1752955839769,-500.0,0.0001917,2]
[373342182,1752955839778,-500.0,0.0001917,2]
[373342183,1752955839788,-500.0,0.0001917,2]
[373342184,1752955839799,-500.0,0.0001917,2]
[373342185,1752955839809,-500.0,0.0001917,2]
[373342186,1752955839819,-500.0,0.0001917,2]
[373342187,1752955839830,-500.0,0.0001917,2]
[373342189,1752955839840,-500.0,0.0001917,2]
[373342190,1752955839849,-500.0,0.0001917,2]
[373342191,1752955839860,-500.0,0.0001917,2]
[373342192,1752955839870,-500.0,0.0001917,2]
[373342193,1752955839880,-584.61211282,0.0001917,2]
[373342194,1752955839890,-620.76323214,0.0001917,2]
[373342195,1752955839900,-500.0,0.0001917,2]
[373342196,1752955839910,-500.0,0.0001917,2]
[373342197,1752955839920,-500.0,0.0001917,2]
[373342198,1752955839929,-500.0,0.0001917,2]
[373342199,1752955839939,-500.0,0.0001917,2]
[373342200,1752955839948,-500.0,0.0001917,2]
[373342201,1752955839959,-500.0,0.0001917,2]
[373342202,1752955839969,-500.0,0.0001917,2]
[373342203,1752955839979,-500.0,0.0001917,2]
[373342204,1752955839989,-500.0,0.0001917,2]
[373342205,1752955839999,-500.0,0.0001917,2]
[373342206,1752955840008,-500.0,0.0001917,2]
[373342207,1752955840017,-500.0,0.0001917,2]
[373342208,1752955840027,-500.0,0.0001917,2]
[373342209,1752955840036,-500.0,0.0001917,2]
[373342210,1752955840046,-500.0,0.0001917,2]
[373342212,1752955840059,-500.0,0.0001917,2]
[373342214,1752955840069,-500.0,0.0001917,2]
[373342216,1752955840079,-500.0,0.0001917,2]
[373342218,1752955840089,-500.0,0.0001917,2]
[373342220,1752955840100,-500.0,0.0001917,2]
[373342222,1752955840110,-500.0,0.0001917,2]
[373342224,1752955840119,-500.0,0.0001917,2]
[373342226,1752955840129,-500.0,0.0001917,2]
[373342228,1752955840138,-500.0,0.0001917,2]
[373342230,1752955840148,-592.83,0.00019171,2]
[373342232,1752955840159,-460.0,0.00019171,2]
[373342235,1752955840168,-1625.9,0.00019171,2]
[373342237,1752955840178,-346.75894481,0.00019172,2]
[373342239,1752955840187,-460.0,0.00019172,2]
[373342241,1752955840197,-460.0,0.00019172,2]
[373342243,1752955840207,-460.0,0.00019172,2]
[373342245,1752955840217,-460.0,0.00019172,2]
[373342247,1752955840227,-460.0,0.00019172,2]
[373342249,1752955840236,-460.0,0.00019172,2]
[373342251,1752955840245,-1233.84,0.00019172,2]
[373342253,1752955840255,-460.0,0.00019172,2]
[373342255,1752955840264,-460.0,0.00019172,2]
[373342257,1752955840274,-460.0,0.00019172,2]
[373342259,1752955840284,-460.0,0.00019172,2]
[373342261,1752955840293,-460.0,0.00019172,2]
[373342263,1752955840305,-1107.54,0.00019172,2]
[373342265,1752955840315,-460.0,0.00019172,2]
[373342268,1752955840325,-460.0,0.00019172,2]
[373342272,1752955840335,-460.0,0.00019172,2]
[373342275,1752955840345,-460.0,0.00019172,2]
[373342278,1752955840355,-748.13,0.00019172,2]
[373342280,1752955840364,-460.0,0.00019172,2]
[373342283,1752955840374,-460.0,0.00019172,2]
[373342287,1752955840384,-460.0,0.00019172,2]
[373342290,1752955840393,-475.05,0.00019172,2]
[373342293,1752955840402,-460.0,0.00019172,2]
[373342296,1752955840411,-608.82441221,0.00019172,2]
[373342299,1752955840421,-460.0,0.00019172,2]
[373342302,1752955840430,-401.71284279,0.00019172,2]
[373342305,1752955840440,-460.0,0.00019172,2]
[373342308,1752955840449,-250.38,0.00019172,2]
[373342311,1752955840458,-460.0,0.00019172,2]
[373342314,1752955840468,-460.0,0.00019172,2]
[373342317,1752955840477,-291.33809974,0.00019173,2]
[373342320,1752955840486,-460.0,0.00019173,2]
[373342322,1752955840495,-460.0,0.00019173,2]
[373342325,1752955840505,-460.0,0.00019173,2]
[373342328,1752955840513,-460.0,0.00019173,2]
[373342331,1752955840523,-1104.99,0.00019173,2]
[373342334,1752955840532,-460.0,0.00019173,2]
[373342337,1752955840541,-874.76,0.00019173,2]
[373342340,1752955840552,-460.0,0.00019173,2]
[373342343,1752955840561,-460.0,0.00019173,2]
[373342346,1752955840571,-310.795439,0.00019178,2]
[373342349,1752955840580,-207.4,0.00019219,2]
[373342352,1752955840589,-12999.20350234,0.00019219,2]
[373342355,1752955840598,-489.38,0.00019277,3]
[373342357,1752955840608,-460.0,0.00019287,2]
[373342359,1752955840617,-460.0,0.00019287,2]
[373342361,1752955840626,-865.23,0.00019287,2]
[373342363,1752955840636,-460.0,0.00019287,2]
[373342366,1752955840645,-613.95,0.00019287,2]
[373342369,1752955840655,-460.0,0.00019287,2]
[373342372,1752955840665,-500.0,0.00019316,2]
[373342375,1752955840675,-151.0,0.00019388,2]
[373342378,1752955840685,-700.0,0.0001942,2]
[373342381,1752955840695,-1000.0,0.00019421,2]
[373342384,1752955840704,-592.83,0.00019445,2]
[373342387,1752955840714,-1625.9,0.00019445,2]
[373342390,1752955840724,-460.0,0.00019446,2]
[373342393,1752955840734,-460.0,0.00019446,2]
[373342397,1752955840744,-460.0,0.00019446,2]
[373342400,1752955840754,-1233.84,0.00019446,2]
[373342403,1752955840764,-460.0,0.00019446,2]
[373342406,1752955840773,-460.0,0.00019446,2]
[373342409,1752955840783,-460.0,0.00019446,2]
[373342411,1752955840793,-460.0,0.00019446,2]
[373342413,1752955840804,-1107.54,0.00019446,2]
[373342415,1752955840814,-460.0,0.00019446,2]
[373342417,1752955840824,-748.13,0.00019446,2]
[373342419,1752955840834,-460.0,0.00019446,2]
[373342421,1752955840844,-475.05,0.00019446,2]
[373342424,1752955840854,-460.0,0.00019446,2]
[373342427,1752955840863,-460.0,0.00019446,2]
[373342430,1752955840872,-460.0,0.00019447,2]
[373342433,1752955840882,-460.0,0.00019447,2]
[373342436,1752955840892,-1104.99,0.00019447,2]
[373342439,1752955840901,-460.0,0.00019447,2]
[373342442,1752955840911,-874.76,0.00019447,2]
[373342468,1752955841043,-460.0,0.00019447,2]
[373342472,1752955841066,-460.0,0.00019447,2]
[373342474,1752955841076,-160.0,0.00019472,2]
[373342476,1752955841086,-160.0,0.00019472,2]
[373342478,1752955841096,-160.0,0.00019472,2]
[373342480,1752955841106,-160.0,0.00019472,2]
[373342482,1752955841115,-215.67360783,0.00019472,2]
[373342484,1752955841125,-476.34170116,0.00019472,2]
[373342486,1752955841135,-525.83049785,0.00019472,2]
[373342488,1752955841144,-160.0,0.00019472,2]
[373342490,1752955841153,-160.0,0.00019472,2]
[373342492,1752955841162,-839.454303,0.00019472,2]
[373342494,1752955841172,-160.0,0.00019472,2]
[373342496,1752955841181,-12612.80205064,0.00019472,2]
[373342498,1752955841192,-230.94145789,0.00019472,2]
[373342500,1752955841201,-214.52603969,0.00019472,2]
[373342502,1752955841211,-160.0,0.00019472,2]
[373342504,1752955841220,-151.0,0.00019489,2]
[373342506,1752955841230,-152.423653,0.0001949,2]
[373342508,1752955841239,-865.23,0.00019561,2]
[373342510,1752955841248,-202.96,0.00019561,2]
[373342512,1752955841257,-613.95,0.00019561,2]
[373342514,1752955841267,-460.0,0.00019561,2]
[373342516,1752955841276,-151.0,0.00019617,2]
[373342518,1752955841286,-151.0,0.00019617,2]
[373342520,1752955841296,-151.0,0.00019617,2]
[373342522,1752955841306,-178.132362,0.00019617,2]
[373342524,1752955841315,-1081.53922489,0.0001962,2]
[373342526,1752955841325,-336.41125171,0.00019718,2]
[373342527,1752955841334,-592.83,0.00019719,2]
[373342528,1752955841344,-1625.9,0.00019719,2]
[373342529,1752955841353,-460.0,0.0001972,2]
[373342531,1752955841363,-460.0,0.0001972,2]
[373342533,1752955841372,-1233.84,0.0001972,2]
[373342535,1752955841382,-460.0,0.0001972,2]
[373342537,1752955841391,-460.0,0.0001972,2]
[373342539,1752955841401,-460.0,0.0001972,2]
[373342541,1752955841410,-460.0,0.0001972,2]
[373342543,1752955841419,-1107.54,0.0001972,2]
[373342544,1752955841429,-460.0,0.0001972,2]
[373342546,1752955841439,-748.13,0.0001972,2]
[373342548,1752955841447,-460.0,0.0001972,2]
[373342550,1752955841457,-475.05,0.0001972,2]
[373342552,1752955841467,-460.0,0.0001972,2]
[373342554,1752955841476,-460.0,0.0001972,2]
[373342556,1752955841485,-460.0,0.00019721,2]
[373342558,1752955841494,-460.0,0.00019721,2]
[373342560,1752955841503,-1104.99,0.00019721,2]
[373342562,1752955841513,-460.0,0.00019721,2]
[373342564,1752955841522,-874.76,0.00019721,2]
[373342566,1752955841532,-460.0,0.00019721,2]
[373342568,1752955841541,-460.0,0.00019721,2]
[373342569,1752955841551,-151.0,0.00019722,2]
[373342571,1752955841561,-151.0,0.00019722,2]
[373342573,1752955841570,-234.576232,0.00019723,2]
[373342575,1752955841580,-151.0,0.00019724,2]
[373342577,1752955841589,-151.0,0.00019724,2]
[373342579,1752955841599,-429.3901486,0.00019726,2]
[373342581,1752955841608,-429.3901486,0.00019726,2]
[373342583,1752955841618,-429.3901486,0.00019726,2]
[373342585,1752955841627,-451.3937918,0.00019726,2]
[373342587,1752955841637,-865.23,0.00019835,2]
[373342589,1752955841647,-613.95,0.00019835,2]
[373342591,1752955841656,-460.0,0.00019835,2]
[373342593,1752955841666,-577.1515091,0.00019863,2]
[373342595,1752955841675,-178.1115364,0.00019863,2]
[373342597,1752955841685,-500.0,0.00019864,2]
[373342599,1752955841695,-577.1515091,0.0001989,2]
[373342601,1752955841704,-10220.13249871,0.00019893,2]
[373342603,1752955841714,-151.0,0.000199,2]
[373342605,1752955841723,-151.0,0.000199,2]
[373342607,1752955841732,-151.0,0.000199,2]
[373342608,1752955841741,-151.0,0.000199,2]
[373342611,1752955841751,-151.0,0.000199,2]
[373342613,1752955841760,-8471.07743932,0.000199,2]
[373342614,1752955841769,-160.0,0.00019917,2]
[373342616,1752955841778,-528.15372949,0.00019946,2]
[373342618,1752955841787,-151.0,0.0001999,2]
[373342620,1752955841797,-200.794724,0.0001999,2]
[373342622,1752955841807,-151.0,0.0001999,2]
[373342624,1752955841817,-151.0,0.0001999,2]
[373342626,1752955841826,-151.0,0.0001999,2]
[373342628,1752955841836,-151.0,0.0001999,2]
[373342630,1752955841846,-151.0,0.0001999,2]
[373342632,1752955841856,-58192.92830392,0.0001999,2]
[373342634,1752955841867,-592.83,0.00019993,2]
[373342636,1752955841878,-1625.9,0.00019993,2]
[373342638,1752955841888,-498.45671776,0.00019994,2]
[373342640,1752955841898,-460.0,0.00019994,2]
[373342642,1752955841908,-1233.84,0.00019994,2]
[373342644,1752955841918,-211.51147321,0.00019994,2]
[373342646,1752955841927,-460.0,0.00019994,2]
[373342648,1752955841937,-460.0,0.00019994,2]
[373342650,1752955841946,-460.0,0.00019994,2]
[373342652,1752955841955,-1107.54,0.00019994,2]
[373342654,1752955841965,-460.0,0.00019994,2]
[373342656,1752955841974,-748.13,0.00019994,2]
[373342658,1752955841983,-475.05,0.00019994,2]
[373342660,1752955841995,-460.0,0.00019994,2]
[373342661,1752955842004,-460.0,0.00019994,2]
[373342662,1752955842013,-460.0,0.00019995,2]
[373342663,1752955842022,-1104.99,0.00019995,2]
[373342664,1752955842032,-460.0,0.00019995,2]
[373342666,1752955842041,-874.76,0.00019995,2]
[373342668,1752955842052,-460.0,0.00019995,2]
[373342670,1752955842064,-460.0,0.00019995,2]
[373342672,1752955842073,-178.1115364,0.0002,2]
[373342674,1752955842083,-577.1515091,0.0002,2]
[373342676,1752955842092,-178.1115364,0.0002,2]
[373342678,1752955842102,-577.1515091,0.0002,2]
[373342680,1752955842111,-577.1515091,0.0002,2]
[373342681,1752955842120,-178.1115364,0.0002,2]
[373342684,1752955842130,-577.1515091,0.0002,2]
[373342686,1752955842140,-178.1115364,0.0002,2]
[373342688,1752955842150,-8471.07743909,0.00020107,2]
[373342690,1752955842159,-865.23,0.00020109,2]
[373342692,1752955842169,-613.95,0.00020109,2]
[373342694,1752955842178,-460.0,0.00020109,2]
[373342696,1752955842187,-260.988547,0.00020187,2]
[373342698,1752955842196,-592.83,0.00020267,2]
[373342700,1752955842206,-1625.9,0.00020267,2]
[373342702,1752955842215,-460.0,0.00020268,2]
[373342703,1752955842226,-1233.84,0.00020268,2]
[373342706,1752955842235,-460.0,0.00020268,2]
[373342707,1752955842244,-460.0,0.00020268,2]
[373342709,1752955842254,-460.0,0.00020268,2]
[373342711,1752955842263,-1107.54,0.00020268,2]
[373342713,1752955842273,-460.0,0.00020268,2]
[373342715,1752955842282,-748.13,0.00020268,2]
[373342718,1752955842293,-475.05,0.00020268,2]
[373342720,1752955842304,-460.0,0.00020268,2]
[373342722,1752955842313,-460.0,0.00020268,2]
[373342724,1752955842323,-460.0,0.00020269,2]
[373342725,1752955842333,-1104.99,0.00020269,2]
[373342728,1752955842342,-460.0,0.00020269,2]
[373342730,1752955842351,-874.76,0.00020269,2]
[373342732,1752955842360,-460.0,0.00020269,2]
[373342734,1752955842369,-460.0,0.00020269,2]
[373342736,1752955842379,-151.0,0.0002027,2]
[373342737,1752955842388,-223.47265,0.0002027,2]
[373342740,1752955842397,-151.0,0.00020271,2]
[373342742,1752955842407,-151.0,0.00020272,2]
[373342744,1752955842416,-151.0,0.00020272,2]
[373342746,1752955842426,-151.0,0.00020272,2]
[373342747,1752955842435,-520.37179257,0.00020289,2]
[373342750,1752955842444,-8471.07743909,0.00020314,3]
[373342752,1752955842454,-865.23,0.00020383,2]
[373342754,1752955842463,-613.95,0.00020383,2]
[373342756,1752955842472,-460.0,0.00020383,2]
[373342758,1752955842482,-159.8125085,0.00020384,2]
[373342759,1752955842494,-160.0,0.00020416,3]
[373342762,1752955842505,-17671.62993046,0.00020416,3]
[373342764,1752955842514,-260.0,0.00020465,2]
[373342766,1752955842524,-700.0,0.00020516,2]
[373342768,1752955842533,-8471.07743909,0.00020521,3]
[373342770,1752955842541,-151.0,0.00020521,2]
[373342772,1752955842552,-151.0,0.00020521,2]
[373342774,1752955842562,-151.0,0.00020521,2]
[373342775,1752955842571,-151.0,0.00020521,2]
[373342778,1752955842581,-151.0,0.00020521,2]
[373342780,1752955842590,-151.0,0.00020521,2]
[373342782,1752955842601,-151.0,0.00020521,2]
[373342784,1752955842611,-2609.84,0.00020533,3]
[373342785,1752955842620,-1304.92,0.00020533,3]
[373342786,1752955842629,-652.46,0.00020533,3]
[373342787,1752955842638,-326.24,0.00020533,3]
[373342789,1752955842648,-592.83,0.00020541,2]
[373342791,1752955842657,-1625.9,0.00020541,2]
[373342793,1752955842667,-460.0,0.00020542,2]
[373342795,1752955842677,-1233.84,0.00020542,2]
[373342797,1752955842686,-460.0,0.00020542,2]
[373342799,1752955842695,-460.0,0.00020542,2]
[373342801,1752955842705,-460.0,0.00020542,2]
[373342803,1752955842713,-1107.54,0.00020542,2]
[373342805,1752955842723,-460.0,0.00020542,2]
[373342807,1752955842732,-748.13,0.00020542,2]
[373342809,1752955842741,-475.05,0.00020542,2]
[373342811,1752955842751,-460.0,0.00020542,2]
[373342813,1752955842760,-460.0,0.00020542,2]
[373342815,1752955842769,-304.54205025,0.00020543,2]
[373342817,1752955842779,-1104.99,0.00020543,2]
[373342819,1752955842789,-460.0,0.00020543,2]
[373342821,1752955842799,-874.76,0.00020543,2]
[373342823,1752955842808,-460.0,0.00020543,2]
[373342825,1752955842818,-460.0,0.00020543,2]
[373342827,1752955842828,-151.0,0.00020544,2]
[373342829,1752955842837,-151.0,0.00020545,2]
[373342831,1752955842846,-151.0,0.00020545,2]
[373342833,1752955842856,-151.0,0.00020545,2]
[373342835,1752955842866,-151.0,0.00020545,2]
[373342837,1752955842877,-1081.53922489,0.00020563,2]
[373342839,1752955842886,-215.0738,0.00020588,2]
[373342841,1752955842895,-336.41125171,0.00020637,2]
[373342843,1752955842906,-865.23,0.00020656,2]
[373342845,1752955842916,-613.95,0.00020656,2]
[373342847,1752955842925,-460.0,0.00020656,2]
[373342849,1752955842935,-4669.0,0.0002067,2]
[373342851,1752955842944,-178.1115364,0.00020685,2]
[373342853,1752955842953,-178.1115364,0.00020685,2]
[373342855,1752955842964,-178.1115364,0.00020685,2]
[373342857,1752955842974,-175.2374737,0.00020685,2]
[373342859,1752955842983,-178.1115364,0.00020712,2]
[373342861,1752955842993,-178.1115364,0.00020712,2]
[373342863,1752955843002,-356.2230728,0.00020712,2]
[373342864,1752955843012,-178.1115364,0.00020712,2]
[373342866,1752955843023,-178.1115364,0.00020712,2]
[373342868,1752955843034,-151.452743,0.0002072,2]
[373342870,1752955843043,-4669.0,0.0002072,2]
[373342872,1752955843060,-151.0,0.00020722,2]
[373342875,1752955843069,-8471.07743909,0.00020728,3]
[373342877,1752955843079,-152.423653,0.00020728,3]
[373342879,1752955843088,-178.1115364,0.0002074,2]
[373342880,1752955843098,-178.1115364,0.0002074,2]
[373342881,1752955843108,-1705.741,0.00020772,2]
[373342883,1752955843118,-178.336,0.00020772,2]
[373342885,1752955843128,-151.0,0.00020775,2]
[373342886,1752955843142,-151.0,0.00020775,2]
[373342887,1752955843152,-175.61,0.00020792,2]
[373342888,1752955843161,-592.83,0.00020815,2]
[373342889,1752955843171,-1625.9,0.00020815,2]
[373342890,1752955843180,-460.0,0.00020816,2]
[373342891,1752955843190,-1233.84,0.00020816,2]
[373342892,1752955843200,-519.84493682,0.00020816,2]
[373342893,1752955843210,-460.0,0.00020816,2]
[373342894,1752955843220,-460.0,0.00020816,2]
[373342896,1752955843230,-1107.54,0.00020816,2]
[373342898,1752955843239,-460.0,0.00020816,2]
[373342900,1752955843248,-748.13,0.00020816,2]
[373342902,1752955843257,-475.05,0.00020816,2]
[373342904,1752955843266,-460.0,0.00020816,2]
[373342906,1752955843276,-460.0,0.00020816,2]
[373342908,1752955843286,-1104.99,0.00020817,2]
[373342910,1752955843295,-460.0,0.00020817,2]
[373342912,1752955843305,-874.76,0.00020817,2]
[373342914,1752955843314,-460.0,0.00020817,2]
[373342916,1752955843324,-460.0,0.00020817,2]
[373342917,1752955843333,-151.0,0.00020819,2]
[373342918,1752955843345,-151.0,0.0002082,2]
[373342919,1752955843354,-178.1115364,0.00020822,2]
[373342920,1752955843363,-178.1115364,0.00020822,2]
[373342922,1752955843373,-178.1115364,0.00020822,2]
[373342923,1752955843382,-178.1115364,0.00020822,2]
[373342924,1752955843391,-178.1115364,0.00020822,2]
[373342926,1752955843401,-178.1115364,0.00020822,2]
[373342928,1752955843410,-151.0,0.00020822,2]
[373342930,1752955843420,-151.0,0.00020822,2]
[373342932,1752955843429,-333.772377,0.00020822,2]
[373342934,1752955843438,-333.772377,0.00020822,2]
[373342936,1752955843447,-151.0,0.00020822,2]
[373342938,1752955843457,-151.0,0.00020822,2]
[373342940,1752955843467,-151.0,0.00020822,2]
[373342942,1752955843476,-203.428,0.00020842,2]
[373342944,1752955843486,-684.939,0.00020842,2]
[373342946,1752955843499,-2156.0,0.00020842,2]
[373342948,1752955843509,-968.0,0.00020842,2]
[373342950,1752955843518,-152.423653,0.0002086,2]
[373342952,1752955843527,-383.0,0.00020891,2]
[373342954,1752955843537,-383.0,0.00020926,2]
[373342956,1752955843547,-865.23,0.0002093,2]
[373342958,1752955843557,-613.95,0.0002093,2]
[373342960,1752955843566,-460.0,0.0002093,2]
[373342962,1752955843576,-8471.07743909,0.00020934,4]
[373342964,1752955843589,-151.0,0.00020935,2]
[373342966,1752955843599,-228.612924,0.00020935,2]
[373342968,1752955843609,-151.0,0.00020935,2]
[373342970,1752955843618,-151.0,0.00020935,2]
[373342972,1752955843628,-151.0,0.00020935,2]
[373342974,1752955843637,-151.0,0.00020935,2]
[373342976,1752955843648,-151.0,0.00020935,2]
[373342978,1752955843658,-224.2,0.0002094,2]
[373342980,1752955843668,-500.0,0.00020942,2]
[373342982,1752955843680,-348.63922981,0.00020942,2]
[373342984,1752955843689,-500.0,0.00020942,2]
[373342986,1752955843699,-500.0,0.00020942,2]
[373342988,1752955843711,-500.0,0.00020942,2]
[373342991,1752955843720,-500.0,0.00020942,2]
[373342993,1752955843730,-500.0,0.00020942,2]
[373342995,1752955843740,-500.0,0.00020942,2]
[373342997,1752955843750,-501.74678868,0.00020942,2]
[373342999,1752955843760,-151.0,0.0002099,2]
[373343001,1752955843769,-151.0,0.0002099,2]
[373343003,1752955843779,-151.0,0.00021,2]
[373343005,1752955843789,-151.0,0.00021,2]
[373343007,1752955843798,-150.0,0.00021,2]
[373343009,1752955843808,-151.0,0.00021,2]
[373343011,1752955843818,-151.0,0.00021,2]
[373343013,1752955843827,-1662.71,0.00021,2]
[373343015,1752955843837,-151.0,0.00021,2]
[373343017,1752955843846,-151.0,0.00021,2]
[373343019,1752955843855,-152.423653,0.00021,4]
[373343021,1752955843864,-360.0,0.00021013,2]
[373343023,1752955843874,-214.26297717,0.00021066,2]
[373343025,1752955843883,-942.059246,0.00021069,8]
[373343027,1752955843893,-592.83,0.00021089,2]
[373343029,1752955843902,-1625.9,0.00021089,2]
[373343031,1752955843911,-460.0,0.0002109,2]
[373343033,1752955843921,-1233.84,0.0002109,2]
[373343035,1752955843931,-460.0,0.0002109,2]
[373343038,1752955843943,-209.57,0.0002109,2]
[373343040,1752955843953,-1107.54,0.0002109,2]
[373343042,1752955843962,-460.0,0.0002109,2]
[373343044,1752955843972,-748.13,0.0002109,2]
[373343046,1752955843981,-475.05,0.0002109,2]
[373343048,1752955843991,-460.0,0.0002109,2]
[373343050,1752955844000,-1104.99,0.00021091,2]
[373343052,1752955844009,-460.0,0.00021091,2]
[373343054,1752955844018,-874.76,0.00021091,2]
[373343056,1752955844027,-460.0,0.00021091,2]
[373343058,1752955844037,-460.0,0.00021091,2]
[373343060,1752955844047,-383.0,0.00021122,2]
[373343061,1752955844060,-8471.07743909,0.00021141,4]
[373343064,1752955844069,-383.0,0.00021171,2]
[373343066,1752955844078,-2567.0,0.000212,2]
[373343068,1752955844087,-2567.0,0.000212,2]
[373343070,1752955844098,-2567.0,0.000212,2]
[373343072,1752955844108,-2567.0,0.000212,2]
[373343074,1752955844117,-2567.0,0.000212,2]
[373343076,1752955844132,-2567.0,0.000212,2]
[373343078,1752955844149,-2567.0,0.000212,2]
[373343080,1752955844158,-2567.0,0.000212,2]
[373343082,1752955844167,-2567.0,0.000212,2]
[373343084,1752955844176,-2567.0,0.000212,2]
[373343085,1752955844186,-865.23,0.00021204,2]
[373343086,1752955844308,-613.95,0.00021204,2]
[373343087,1752955844318,-460.0,0.00021204,2]
[373343088,1752955844328,-153.0,0.00021205,2]
[373343089,1752955844337,-153.0,0.00021205,2]